bitfinex-derivatives/quotes_BTCF0:USTF0_20250121
["timestamp","ask_amount","ask_price","bid_price","bid_amount"]
[1737476735515,0.407955,106110.0,106100.0,0.00914126]
[1737476736122,0.3608,106110.0,106100.0,0.00914126]
[1737476736317,0.407955,106110.0,106100.0,0.00914126]
[1737476736518,0.407955,106110.0,106100.0,0.01414126]
[1737476736719,0.7216,106110.0,106100.0,0.01414126]
[1737476737021,0.768755,106110.0,106100.0,0.01414126]
[1737476737222,0.768755,106110.0,106100.0,0.00914126]
[1737476737419,0.768755,106110.0,106100.0,0.01014126]
[1737476738226,0.3608,106110.0,106100.0,0.04930026]
[1737476738521,0.3608,106110.0,106100.0,0.00214126]
[1737476738715,0.3608,106110.0,106100.0,0.00114126]
[1737476738913,0.3608,106110.0,106100.0,0.00514126]
[1737476739418,0.768755,106110.0,106100.0,0.00514126]
[1737476739924,0.3608,106110.0,106100.0,0.00514126]
[1737476740120,0.407955,106110.0,106100.0,0.00514126]
[1737476741325,0.047159,106100.0,106060.0,0.00817821]
[1737476741528,0.3608,106090.0,106050.0,1.27572525]
[1737476742221,0.3608,106080.0,106050.0,1.27572525]
[1737476742422,0.36094126,106080.0,106060.0,0.00014126]
[1737476742723,0.36094126,106080.0,106060.0,0.36794126]
[1737476743128,0.36094126,106080.0,106060.0,0.37694126]
[1737476743427,0.36094126,106080.0,106060.0,0.00914126]
[1737476743629,0.36094126,106080.0,106060.0,0.01814126]
[1737476744928,0.40911026,106080.0,106060.0,0.01814126]
[1737476745430,0.3608,106070.0,106060.0,0.01814126]
[1737476745821,0.36194126,106080.0,106060.0,0.01814126]
[1737476746017,0.00114126,106080.0,106060.0,0.37894126]
[1737476746532,0.11230339,106090.0,106070.0,0.55812525]
[1737476746720,0.11230339,106090.0,106080.0,0.3608]
[1737476747128,0.11230339,106090.0,106060.0,0.38726846]
[1737476747323,0.47310339,106090.0,106060.0,0.37826846]
[1737476747526,0.52026739,106090.0,106060.0,0.02646846]
[1737476747731,0.3608,106080.0,106060.0,0.02646846]
[1737476748023,0.407969,106080.0,106060.0,0.01814126]
[1737476748230,0.407972,106070.0,106060.0,0.00914126]
[1737476749015,0.407972,106070.0,106060.0,0.01714126]
[1737476750215,0.407972,106070.0,106060.0,0.00914126]
[1737476750426,0.407972,106070.0,106060.0,0.01014126]
[1737476750628,0.653072,106070.0,106060.0,0.01014126]
[1737476750928,0.653072,106070.0,106060.0,0.00114126]
[1737476751118,0.407972,106070.0,106060.0,0.00514126]
[1737476751326,0.41690102,106080.0,106060.0,0.05231726]
[1737476751624,0.3608,106070.0,106060.0,0.00514126]
[1737476752526,0.47310339,106070.0,106060.0,0.00414126]
[1737476752734,0.47310339,106070.0,106060.0,0.00114126]
[1737476753026,0.11230339,106070.0,106060.0,0.00114126]
[1737476753246,0.1406437,106080.0,106060.0,0.40911726]
[1737476753530,0.1406437,106080.0,106070.0,0.60529725]
[1737476753722,0.72228168,106140.0,106070.0,0.53595368]
[1737476753918,0.3608,106120.0,106090.0,0.17514168]
[1737476754124,0.3608,106120.0,106090.0,0.53594168]
[1737476754324,0.407946,106130.0,106100.0,0.12798168]
[1737476754526,0.407946,106130.0,106090.0,0.48878168]
[1737476754830,0.407946,106130.0,106100.0,0.047156]
[1737476755023,0.00414126,106120.0,106100.0,0.04729726]
[1737476755224,0.36494126,106120.0,106100.0,0.00014126]
[1737476755418,0.00414126,106120.0,106100.0,0.00014126]
[1737476755628,0.00414126,106120.0,106110.0,0.12798168]
[1737476755831,0.00414126,106120.0,106110.0,0.407954]
[1737476756332,0.00414126,106120.0,106110.0,0.644854]
[1737476757221,0.00014126,106120.0,106110.0,0.644854]
[1737476757734,0.00014126,106120.0,106110.0,0.407954]
[1737476757942,0.00014126,106120.0,106110.0,0.408954]
[1737476758232,0.00014126,106120.0,106110.0,0.001]
[1737476759229,0.00014126,106120.0,106110.0,0.048154]
[1737476759430,0.00014126,106120.0,106110.0,0.408954]
[1737476759627,0.00014126,106120.0,106110.0,0.41704312]
[1737476759936,0.19500151,106170.0,106160.0,0.047131]
[1737476760227,0.19500151,106190.0,106180.0,0.047122]
[1737476760446,0.19500151,106190.0,106170.0,0.407925]
[1737476760623,0.19500151,106190.0,106180.0,0.3608]
[1737476760824,0.19500151,106190.0,106180.0,0.60517732]
[1737476761028,0.19500151,106190.0,106180.0,0.90517732]
[1737476761332,0.19500151,106190.0,106170.0,0.60532058]
[1737476761832,0.19900151,106190.0,106170.0,0.60532058]
[1737476762437,0.19900151,106190.0,106170.0,0.40806626]
[1737476762736,0.56280151,106190.0,106170.0,0.00014126]
[1737476763237,1.5,106180.0,106170.0,0.00014126]
[1737476763542,1.5,106180.0,106170.0,0.36094126]
[1737476763928,0.3608,106180.0,106170.0,0.00014126]
[1737476764323,0.407923,106180.0,106120.0,0.85599244]
[1737476764529,0.60519932,106130.0,106120.0,0.21454344]
[1737476765234,1.50052001,106150.0,106120.0,0.57534344]
[1737476765433,0.00052001,106150.0,106130.0,0.55805432]
[1737476765737,0.00014126,106150.0,106140.0,0.04714]
[1737476765928,0.00014126,106150.0,106130.0,0.047144]
[1737476766323,0.00014126,106150.0,106130.0,0.047143]
[1737476766530,0.00014126,106150.0,106130.0,0.407943]
[1737476767436,0.00014126,106150.0,106130.0,0.047145]
[1737476767830,0.00114126,106150.0,106130.0,0.007]
[1737476768132,0.00114126,106150.0,106130.0,0.008]
[1737476768327,0.36194126,106150.0,106130.0,0.008]
[1737476768533,0.36094126,106150.0,106130.0,0.001]
[1737476768925,0.36094126,106150.0,106130.0,0.047145]
[1737476769128,0.36094126,106150.0,106130.0,0.048145]
[1737476769630,0.36294126,106150.0,106130.0,0.24439932]
[1737476769937,0.36294126,106150.0,106120.0,0.41637995]
[1737476770936,0.36194126,106150.0,106120.0,0.41637995]
[1737476771133,0.36094126,106150.0,106120.0,0.41637995]
[1737476771331,0.36094126,106150.0,106130.0,0.408943]
[1737476771833,0.36094126,106150.0,106130.0,0.047143]
[1737476772027,0.36094126,106150.0,106140.0,0.19725432]
[1737476772737,0.00214126,106150.0,106130.0,0.407943]
[1737476773038,0.36294126,106150.0,106130.0,0.407943]
[1737476773340,0.36094126,106150.0,106140.0,0.001]
[1737476774836,0.36094126,106150.0,106130.0,0.408943]
[1737476775037,0.36094126,106150.0,106130.0,0.048143]
[1737476775337,0.36094126,106150.0,106130.0,0.047143]
[1737476775536,0.36094126,106150.0,106140.0,0.001]
[1737476775932,0.36094126,106150.0,106120.0,0.36923195]
[1737476776238,0.36094126,106150.0,106130.0,0.001]
[1737476777136,0.3608,106140.0,106130.0,0.001]
[1737476777534,0.40794,106140.0,106120.0,0.00014126]
[1737476777736,0.6006,106130.0,106120.0,0.00014126]
[1737476777934,0.647745,106130.0,106120.0,0.00014126]
[1737476778234,0.047156,106100.0,106070.0,1.05207161]
[1737476778433,0.047156,106100.0,106070.0,1.30673038]
[1737476778741,0.047156,106100.0,106070.0,1.35389738]
[1737476778942,0.04716,106090.0,106070.0,1.35389738]
[1737476779136,0.04716,106090.0,106070.0,1.30673038]
[1737476779342,0.04716,106090.0,106070.0,0.45217164]
[1737476779343,0.047164,106080.0,106070.0,0.45217164]
[1737476779547,0.047164,106080.0,106070.0,0.01731732]
[1737476779736,0.407964,106080.0,106070.0,0.00925855]
[1737476779933,0.407964,106080.0,106040.0,0.92526875]
[1737476780239,0.047171,106070.0,106040.0,1.28606875]
[1737476780436,0.047171,106070.0,106040.0,1.33324975]
[1737476780744,0.407971,106070.0,106040.0,1.34184666]
[1737476780939,0.407974,106060.0,106040.0,0.93386566]
[1737476781148,0.047177,106050.0,106040.0,0.73661134]
[1737476781333,0.407977,106050.0,106040.0,0.48155569]
[1737476781740,0.407977,106050.0,106040.0,0.49055569]
[1737476781943,0.047182,106040.0,106030.0,0.31769504]
[1737476782136,0.407982,106040.0,106030.0,0.31769504]
[1737476783045,0.407982,106040.0,106030.0,0.33244783]
[1737476783252,0.407982,106040.0,106030.0,0.01475279]
[1737476784437,0.408982,106040.0,106030.0,0.01875279]
[1737476784632,0.708982,106040.0,106020.0,0.00829021]
[1737476784838,0.047204,105990.0,105980.0,0.26877246]
[1737476785040,0.047208,105980.0,105970.0,0.26895401]
[1737476785349,0.408008,105980.0,105970.0,0.26895401]
[1737476786341,0.409008,105980.0,105970.0,0.27095401]
[1737476787550,1.909008,105980.0,105970.0,0.27095401]
[1737476787851,1.908008,105980.0,105970.0,0.26895401]
[1737476788153,0.3608,105980.0,105960.0,0.36878023]
[1737476788350,0.60526732,105970.0,105960.0,0.27712277]
[1737476788549,0.408017,105960.0,105950.0,0.34275387]
[1737476788745,0.19725432,105950.0,105930.0,0.47211622]
[1737476788945,0.768826,105940.0,105930.0,0.47211622]
[1737476789144,1.017626,105940.0,105930.0,0.24355419]
[1737476789358,0.047231,105930.0,105920.0,1.10084558]
[1737476789656,0.04724,105910.0,105900.0,0.1]
[1737476789858,0.76884,105910.0,105900.0,0.1]
[1737476790042,0.76884,105910.0,105900.0,0.12363256]
[1737476790241,0.047248,105890.0,105880.0,0.01397451]
[1737476790449,0.96610232,105890.0,105880.0,0.01397451]
[1737476790845,0.768848,105890.0,105860.0,0.408061]
[1737476791047,0.047248,105890.0,105870.0,0.047257]
[1737476791251,0.408048,105890.0,105870.0,0.047257]
[1737476791452,0.408048,105890.0,105870.0,0.07680099]
[1737476791749,0.60630232,105890.0,105880.0,0.008]
[1737476792152,0.60730232,105890.0,105880.0,0.008]
[1737476792339,0.60730232,105890.0,105860.0,0.002]
[1737476792340,0.90630232,105890.0,105860.0,0.002]
[1737476792544,0.047265,105860.0,105840.0,0.01397451]
[1737476792752,0.3608,105850.0,105840.0,0.01397451]
[1737476793046,0.768866,105850.0,105840.0,0.01397451]
[1737476793246,0.768866,105850.0,105840.0,0.02955502]
[1737476793645,0.96612032,105850.0,105840.0,0.02955502]
[1737476794258,0.768866,105850.0,105840.0,0.02955502]
[1737476794452,0.24452032,105850.0,105840.0,0.02955502]
[1737476794651,0.00014126,105860.0,105840.0,0.047271]
[1737476794850,0.00014126,105860.0,105830.0,0.3608]
[1737476795052,0.001,105850.0,105840.0,0.05327]
[1737476795542,0.00014126,105860.0,105850.0,0.047266]
[1737476795748,0.0025,105880.0,105870.0,0.047257]
[1737476796044,0.3608,105910.0,105870.0,0.408057]
[1737476796252,0.408036,105920.0,105900.0,0.047243]
[1737476796753,0.60529432,105910.0,105890.0,0.047248]
[1737476797057,0.40804,105910.0,105900.0,0.00014126]
[1737476797254,0.3608,105910.0,105880.0,0.43528767]
[1737476797557,0.3608,105910.0,105900.0,0.047244]
[1737476797758,0.40817926,105920.0,105900.0,0.047244]
[1737476798060,0.005,105910.0,105900.0,0.047244]
[1737476798360,0.3608,105930.0,105920.0,0.047235]
[1737476798854,0.3608,105930.0,105900.0,0.55905432]
[1737476799057,0.3608,105940.0,105910.0,0.047237]
[1737476799254,0.3608,105930.0,105920.0,0.047233]
[1737476799450,0.408022,105950.0,105930.0,0.04723]
[1737476799650,0.36094126,105940.0,105910.0,0.00014126]
[1737476799953,0.36094126,105940.0,105910.0,0.04738026]
[1737476799954,0.40817126,105940.0,105910.0,0.04738026]
[1737476800257,0.408035,105920.0,105910.0,0.00014126]
[1737476800556,0.3608,105920.0,105910.0,0.04737926]
[1737476800758,0.3608,105930.0,105910.0,0.00014126]
[1737476800944,0.40992321,105920.0,105910.0,0.00014126]
[1737476801347,0.40992321,105920.0,105910.0,0.00114126]
[1737476801655,0.41292321,105920.0,105910.0,0.00114126]
[1737476802447,0.41592321,105920.0,105910.0,0.00014126]
[1737476803054,0.41592321,105920.0,105880.0,0.28395]
[1737476803254,0.408045,105900.0,105880.0,0.28395]
[1737476803456,0.408045,105900.0,105880.0,0.08545959]
[1737476803663,0.408045,105900.0,105880.0,0.10023004]
[1737476803857,0.408048,105890.0,105880.0,0.06202245]
[1737476804459,0.408048,105890.0,105880.0,0.01477045]
[1737476804956,0.408048,105890.0,105880.0,0.01777045]
[1737476805156,0.3608,105890.0,105880.0,0.06502345]
[1737476805460,0.3638,105890.0,105880.0,0.06202345]
[1737476806059,0.3638,105890.0,105880.0,0.07088698]
[1737476806562,0.411048,105890.0,105880.0,0.07088698]
[1737476807154,1.914048,105890.0,105880.0,0.07088698]
[1737476807456,1.911048,105890.0,105880.0,0.07088698]
[1737476807666,1.914048,105890.0,105880.0,0.07088698]
[1737476807857,1.913048,105890.0,105880.0,0.02363398]
[1737476808157,0.047257,105870.0,105860.0,0.013813]
[1737476808363,0.047266,105850.0,105830.0,0.04736211]
[1737476808565,0.3608,105840.0,105830.0,0.04736511]
[1737476808952,0.36094126,105850.0,105830.0,0.24461943]
[1737476809150,0.00014126,105850.0,105840.0,0.047271]
[1737476810050,0.36094126,105850.0,105840.0,0.047271]
[1737476810262,0.36194126,105850.0,105840.0,0.047271]
[1737476810655,0.408058,105870.0,105840.0,0.408071]
[1737476810857,0.3608,105860.0,105850.0,0.047265]
[1737476811159,0.001,105850.0,105840.0,0.05227]
[1737476811362,0.3618,105850.0,105840.0,0.05227]
[1737476811550,0.3628,105850.0,105840.0,0.06127]
[1737476811756,0.409066,105850.0,105840.0,0.009]
[1737476811957,0.409066,105850.0,105840.0,0.014]
[1737476812155,0.408066,105850.0,105840.0,0.005]
[1737476812555,0.408066,105850.0,105830.0,0.00014126]
[1737476812760,0.60532532,105840.0,105830.0,0.00014126]
[1737476813059,0.047284,105810.0,105800.0,0.1]
[1737476813249,0.768884,105810.0,105800.0,0.1]
[1737476814159,0.768884,105810.0,105770.0,0.00837036]
[1737476814160,0.047298,105780.0,105770.0,0.00837036]
[1737476814464,0.047305,105770.0,105760.0,0.047307]
[1737476814660,0.408105,105770.0,105760.0,0.047307]
[1737476815260,0.38680969,105770.0,105760.0,0.02957683]
[1737476815761,0.38680969,105770.0,105760.0,0.03857683]
[1737476815762,0.38780969,105770.0,105760.0,0.03857683]
[1737476815957,0.38710721,105770.0,105760.0,0.03857683]
[1737476816555,0.38710721,105770.0,105760.0,0.0231216]
[1737476816761,0.3628,105770.0,105760.0,0.0241216]
[1737476817267,0.410102,105770.0,105760.0,0.0241216]
[1737476817465,0.3618,105770.0,105760.0,0.0231216]
[1737476817665,0.3628,105770.0,105760.0,0.0231216]
[1737476817860,0.3628,105770.0,105760.0,0.01343799]
[1737476818061,0.56005432,105770.0,105760.0,0.02822686]
[1737476818358,0.60735632,105770.0,105760.0,0.02822686]
[1737476818560,0.60735632,105770.0,105760.0,0.04745355]
[1737476819367,0.60735632,105770.0,105760.0,0.009]
[1737476819967,0.60635632,105770.0,105760.0,0.009]
[1737476820471,0.67004576,105780.0,105740.0,0.408111]
[1737476820666,0.11199144,105780.0,105770.0,0.408098]
[1737476820868,5.9e-07,105790.0,105770.0,0.408098]
[1737476821068,0.3608,105830.0,105790.0,0.047289]
[1737476821376,0.3608,105830.0,105820.0,0.047275]
[1737476822066,0.30483333,105840.0,105830.0,0.047271]
[1737476822257,0.30431332,105840.0,105830.0,0.408071]
[1737476822461,0.15053858,105840.0,105830.0,0.708071]
[1737476822661,0.408045,105890.0,105870.0,0.04725]
[1737476822870,0.3608,105880.0,105870.0,0.04725]
[1737476823073,1.5,105870.0,105850.0,0.047258]
[1737476823266,0.047264,105850.0,105830.0,0.04727]
[1737476823462,0.3608,105850.0,105820.0,0.3608]
[1737476823667,0.3638,105830.0,105820.0,0.047275]
[1737476824059,0.411071,105830.0,105820.0,0.00014126]
[1737476824373,0.60532532,105830.0,105770.0,0.2316]
[1737476824564,0.3608,105790.0,105780.0,0.04729]
[1737476824765,0.3608,105790.0,105760.0,0.00011858]
[1737476824965,0.408091,105790.0,105780.0,0.01478299]
[1737476825263,0.408091,105790.0,105780.0,0.06207599]
[1737476825459,0.768891,105790.0,105780.0,0.01478299]
[1737476826372,0.769891,105790.0,105780.0,0.01578299]
[1737476827067,0.409091,105790.0,105780.0,0.01578299]
[1737476827272,0.56205432,105790.0,105720.0,0.2277]
[1737476827463,0.3608,105740.0,105730.0,0.047314]
[1737476827664,0.408111,105740.0,105730.0,0.047314]
[1737476827865,0.047307,105750.0,105720.0,0.2277]
[1737476828065,0.047307,105750.0,105740.0,0.047311]
[1737476828464,0.3608,105760.0,105730.0,0.58171996]
[1737476828668,0.3608,105760.0,105740.0,0.02366564]
[1737476828669,0.36094126,105760.0,105740.0,0.02366564]
[1737476828870,0.408107,105750.0,105740.0,0.07097564]
[1737476830072,0.408107,105750.0,105740.0,0.02366564]
[1737476830771,0.24456532,105740.0,105730.0,6e-08]
[1737476831074,0.408111,105740.0,105730.0,6e-08]
[1737476831270,0.047316,105730.0,105710.0,0.047325]
[1737476831468,0.3608,105720.0,105710.0,0.047325]
[1737476831673,0.047325,105710.0,105700.0,0.147328]
[1737476831974,0.408125,105710.0,105700.0,0.1]
[1737476833069,0.708125,105710.0,105700.0,0.1]
[1737476833272,0.047342,105670.0,105650.0,0.16202795]
[1737476833475,0.46350978,105710.0,105660.0,0.19725432]
[1737476833678,0.46350978,105710.0,105690.0,0.047331]
[1737476833877,0.002,105710.0,105700.0,0.001]
[1737476834072,0.410125,105710.0,105700.0,0.001]
[1737476834275,0.60752126,105710.0,105700.0,0.001]
[1737476834781,0.41026694,105710.0,105690.0,0.047333]
[1737476834979,0.36294194,105710.0,105700.0,0.047329]
[1737476835277,0.36194194,105710.0,105700.0,0.047329]
[1737476835673,0.00114194,105710.0,105700.0,0.60538332]
[1737476836172,0.00114194,105710.0,105700.0,0.90538332]
[1737476836479,0.3608,105740.0,105730.0,0.047316]
[1737476837574,0.409111,105740.0,105730.0,0.047316]
[1737476837977,0.3618,105740.0,105730.0,0.047316]
[1737476838182,0.001,105740.0,105730.0,0.408116]
[1737476838483,0.005,105740.0,105730.0,0.408116]
[1737476839082,0.047316,105730.0,105720.0,0.00014194]
[1737476839282,0.408116,105730.0,105720.0,0.00014194]
[1737476839876,0.708116,105730.0,105670.0,0.00011361]
[1737476840184,1.908141,105680.0,105650.0,0.047348]
[1737476840378,1.908141,105680.0,105660.0,0.20937495]
[1737476840379,0.408142,105670.0,105660.0,0.20937495]
[1737476840687,0.408142,105670.0,105660.0,0.16202795]
[1737476840888,0.408142,105670.0,105660.0,0.20937495]
[1737476841375,0.408142,105670.0,105660.0,0.18571075]
[1737476841581,0.409142,105670.0,105660.0,0.18871075]
[1737476841782,0.410142,105670.0,105660.0,0.18871075]
[1737476843084,0.710142,105670.0,105660.0,0.18871075]
[1737476843293,0.047351,105650.0,105640.0,0.2710996]
[1737476843586,0.768951,105650.0,105640.0,0.2710996]
[1737476844678,0.047358,105640.0,105620.0,0.047362]
[1737476844873,0.3608,105630.0,105620.0,0.047362]
[1737476845488,0.40816,105630.0,105620.0,0.047362]
[1737476845879,0.40816,105630.0,105610.0,0.047369]
[1737476846189,0.3618,105650.0,105640.0,0.047356]
[1737476846387,0.001,105650.0,105640.0,0.047356]
[1737476846885,0.408147,105660.0,105650.0,0.047351]
[1737476847087,0.3608,105660.0,105640.0,0.047355]
[1737476847290,0.3608,105650.0,105640.0,0.047355]
[1737476847589,0.408148,105660.0,105650.0,0.047351]
[1737476847590,0.00014194,105660.0,105650.0,0.047351]
[1737476847785,0.04748894,105660.0,105650.0,0.047351]
[1737476848294,0.00014194,105660.0,105650.0,0.047351]
[1737476848679,0.40828894,105660.0,105650.0,0.047351]
[1737476848885,0.00014194,105660.0,105650.0,0.047351]
[1737476849085,0.36094194,105660.0,105650.0,0.047351]
[1737476849292,0.40828894,105660.0,105650.0,0.047351]
[1737476849492,0.40828894,105660.0,105640.0,0.00014194]
[1737476849693,0.408151,105650.0,105640.0,0.00014194]
[1737476849885,0.60540532,105650.0,105640.0,0.00014194]
[1737476850281,0.408151,105650.0,105640.0,0.00014194]
[1737476850899,0.408151,105650.0,105640.0,0.00114194]
[1737476851282,0.60540532,105650.0,105640.0,0.00114194]
[1737476851483,0.60540532,105650.0,105640.0,1e-08]
[1737476851883,0.85320532,105650.0,105640.0,1e-08]
[1737476852087,0.047369,105610.0,105600.0,0.1]
[1737476852282,0.047378,105590.0,105580.0,0.04146213]
[1737476852482,0.408178,105590.0,105580.0,0.08884513]
[1737476852689,0.408175,105600.0,105580.0,0.047383]
[1737476852889,0.36094194,105600.0,105560.0,0.00675861]
[1737476853182,0.00014194,105600.0,105570.0,0.19725432]
[1737476853486,0.408165,105620.0,105600.0,0.047371]
[1737476853693,0.408165,105620.0,105610.0,0.047369]
[1737476853694,0.3608,105620.0,105610.0,0.047369]
[1737476853889,0.3608,105620.0,105610.0,0.06218146]
[1737476854085,0.408165,105620.0,105610.0,0.06218146]
[1737476854392,0.768965,105620.0,105610.0,0.01481246]
[1737476854692,0.768965,105620.0,105610.0,0.06218146]
[1737476854889,0.768965,105620.0,105590.0,0.0067565]
[1737476854890,0.047387,105570.0,105530.0,0.21635742]
[1737476855094,0.769001,105540.0,105530.0,0.21635742]
[1737476855899,0.769001,105540.0,105530.0,0.28384913]
[1737476856192,0.408201,105540.0,105530.0,0.28384913]
[1737476856887,0.408201,105540.0,105530.0,0.24007046]
[1737476857092,0.409201,105540.0,105530.0,0.24007046]
[1737476857297,0.410201,105540.0,105530.0,0.24007046]
[1737476858301,0.3608,105530.0,105510.0,0.3227185]
[1737476858592,0.047419,105500.0,105490.0,0.00068]
[1737476858887,0.3608,105500.0,105480.0,0.047427]
[1737476859093,0.047428,105480.0,105470.0,0.00011444]
[1737476859291,0.408228,105480.0,105470.0,0.00011444]
[1737476859889,0.40836694,105490.0,105470.0,0.10093379]
[1737476860087,0.3608,105480.0,105470.0,0.05350179]
[1737476860283,0.048428,105480.0,105470.0,0.05350179]
[1737476860488,0.409228,105480.0,105470.0,0.05338735]
[1737476860892,0.60748232,105480.0,105470.0,0.05338735]
[1737476861591,0.047441,105450.0,105440.0,0.21700876]
[1737476861796,0.408241,105450.0,105440.0,0.21700876]
[1737476862093,0.769041,105450.0,105440.0,0.27040801]
[1737476862601,1.069041,105450.0,105440.0,0.17024801]
[1737476862788,0.769041,105450.0,105430.0,0.27026095]
[1737476862989,0.60550032,105440.0,105430.0,0.27026095]
[1737476863593,0.04745,105430.0,105420.0,0.32551314]
[1737476863795,0.40825,105430.0,105420.0,0.32551314]
[1737476864094,0.001,105440.0,105420.0,0.32551314]
[1737476864292,0.00114194,105440.0,105420.0,0.26844714]
[1737476864484,0.3608,105430.0,105420.0,0.02374182]
[1737476864688,0.04845,105430.0,105420.0,0.02374182]
[1737476864885,0.001,105430.0,105410.0,0.047459]
[1737476865295,0.409252,105430.0,105400.0,0.147463]
[1737476865502,0.001,105430.0,105420.0,0.408255]
[1737476865698,0.001,105430.0,105420.0,0.047455]
[1737476866000,0.002,105430.0,105420.0,0.047455]
[1737476866190,0.001,105430.0,105420.0,0.408255]
[1737476866502,0.001,105430.0,105420.0,0.047455]
[1737476866690,0.00114194,105440.0,105430.0,0.04745]
[1737476866994,0.00670779,105470.0,105450.0,0.047441]
[1737476867195,0.3608,105460.0,105430.0,0.3608]
[1737476867496,0.047459,105410.0,105400.0,0.1]
[1737476867690,0.04745,105430.0,105400.0,0.1]
[1737476867691,0.408251,105430.0,105400.0,0.1]
[1737476867995,0.3608,105430.0,105420.0,0.047455]
[1737476868212,0.55805432,105430.0,105400.0,0.1]
[1737476868387,0.408259,105410.0,105400.0,0.1]
[1737476868789,0.408259,105410.0,105400.0,0.10014194]
[1737476869302,0.408259,105410.0,105400.0,0.16244509]
[1737476869303,0.3608,105410.0,105400.0,0.16244509]
[1737476869496,0.40939394,105430.0,105400.0,0.16244509]
[1737476869794,0.001,105410.0,105400.0,0.16244509]
[1737476870190,0.3608,105410.0,105400.0,0.16344509]
[1737476870400,0.3608,105410.0,105400.0,0.11598109]
[1737476870587,0.408259,105410.0,105400.0,0.11598109]
[1737476870786,0.408259,105410.0,105400.0,0.11498109]
[1737476871398,0.36494194,105430.0,105400.0,0.47578109]
[1737476871597,0.05348893,105430.0,105410.0,0.047456]
[1737476871794,0.3608,105420.0,105400.0,0.11498109]
[1737476872092,0.408256,105420.0,105400.0,0.16244309]
[1737476872494,0.408259,105410.0,105400.0,0.11498109]
[1737476872701,0.3608,105420.0,105400.0,0.19211994]
[1737476872908,0.408257,105420.0,105400.0,0.19211994]
[1737476873395,0.3608,105420.0,105400.0,0.11498109]
[1737476873702,0.408259,105410.0,105400.0,0.11498109]
[1737476874100,0.3608,105420.0,105400.0,0.11498109]
[1737476874405,0.408255,105420.0,105410.0,0.047459]
[1737476874600,0.409255,105420.0,105410.0,0.047459]
[1737476874790,0.409255,105420.0,105410.0,0.06229815]
[1737476874996,0.409255,105420.0,105410.0,0.01483915]
[1737476875196,0.409255,105420.0,105400.0,0.03550945]
[1737476875396,0.408259,105410.0,105400.0,0.03550945]
[1737476876104,0.408259,105410.0,105400.0,0.05341637]
[1737476876401,0.3608,105410.0,105400.0,0.10088037]
[1737476876908,0.047455,105420.0,105410.0,0.047459]
[1737476877205,0.00014194,105430.0,105420.0,0.047455]
[1737476877404,0.00014194,105430.0,105420.0,0.07119561]
[1737476877600,0.00014194,105430.0,105420.0,0.05455424]
[1737476878004,0.36094194,105430.0,105420.0,0.05455424]
[1737476878202,0.36094194,105430.0,105420.0,0.02374061]
[1737476878403,0.40839194,105430.0,105420.0,0.02374061]
[1737476878601,0.36094194,105430.0,105420.0,0.02374061]
[1737476878805,0.36094194,105430.0,105420.0,0.07119561]
[1737476879105,0.36194194,105430.0,105420.0,0.07119561]
[1737476879297,0.36194194,105430.0,105420.0,0.1008668]
[1737476879697,0.00014194,105430.0,105420.0,0.29812112]
[1737476879897,0.3608,105460.0,105420.0,0.95892112]
[1737476880096,0.3608,105470.0,105450.0,0.19725432]
[1737476880302,0.3608,105480.0,105470.0,0.047432]
[1737476880512,0.3608,105480.0,105470.0,0.24468632]
[1737476881304,0.00014194,105490.0,105480.0,0.047428]
[1737476881701,0.00014194,105490.0,105480.0,0.0711517]
[1737476881906,0.36094194,105490.0,105480.0,0.0711517]
[1737476882396,0.36094194,105490.0,105480.0,0.047428]
[1737476882595,0.40836694,105490.0,105470.0,0.047432]
[1737476882808,0.408229,105480.0,105460.0,0.25134194]
[1737476883005,0.3608,105470.0,105460.0,0.29877794]
[1737476883207,0.3608,105470.0,105460.0,0.00014194]
[1737476883413,0.408232,105470.0,105460.0,0.00014194]
[1737476884016,0.408232,105470.0,105460.0,0.02387233]
[1737476885309,0.3608,105470.0,105460.0,0.07130933]
[1737476885512,0.3618,105470.0,105460.0,0.07230933]
[1737476885709,0.3628,105470.0,105460.0,0.07230933]
[1737476886409,0.002,105470.0,105460.0,0.07230933]
[1737476887018,0.3608,105480.0,105470.0,0.047432]
[1737476887204,0.52893961,105480.0,105470.0,0.047432]
[1737476887405,0.16813961,105480.0,105470.0,0.21794948]
[1737476887608,0.408203,105540.0,105490.0,0.047423]
[1737476887915,0.3608,105500.0,105480.0,0.047427]
[1737476888102,0.3608,105500.0,105460.0,0.001]
[1737476888103,0.55805432,105490.0,105460.0,0.001]
[1737476888314,0.047439,105460.0,105440.0,0.047444]
[1737476888513,0.408245,105450.0,105430.0,0.047449]
[1737476888710,0.408247,105440.0,105420.0,0.08903952]
[1737476888911,0.408247,105440.0,105430.0,0.03856773]
[1737476889313,0.408247,105440.0,105430.0,0.05284894]
[1737476889711,0.047459,105410.0,105400.0,0.1]
[1737476889911,0.769059,105410.0,105400.0,0.1]
[1737476890119,0.047475,105380.0,105360.0,0.37100746]
[1737476890316,0.408275,105380.0,105360.0,0.37100746]
[1737476890621,0.408275,105380.0,105360.0,0.16375046]
[1737476890622,0.55805432,105380.0,105360.0,0.16375046]
[1737476890926,0.047482,105360.0,105300.0,0.4608]
[1737476891107,0.60555532,105320.0,105300.0,0.147508]
[1737476891306,0.60555532,105320.0,105300.0,0.1]
[1737476891307,0.408304,105310.0,105300.0,0.1]
[1737476891615,0.047509,105300.0,105290.0,0.84526591]
[1737476891817,0.60556332,105300.0,105290.0,0.84540785]
[1737476892517,0.60556332,105300.0,105290.0,0.84040785]
[1737476892711,0.60471703,105300.0,105290.0,0.84040785]
[1737476892913,0.3608,105310.0,105290.0,0.84040785]
[1737476893224,0.36094194,105320.0,105310.0,0.042504]
[1737476893913,0.40844294,105320.0,105290.0,0.04765294]
[1737476894215,0.36094194,105320.0,105300.0,0.047506]
[1737476894815,0.36094194,105320.0,105290.0,0.00014194]
[1737476894816,0.36094194,105320.0,105310.0,0.047504]
[1737476895815,0.00014194,105320.0,105310.0,0.047504]
[1737476896007,0.36094194,105320.0,105290.0,0.00014194]
[1737476896232,0.60556032,105310.0,105290.0,0.04765494]
[1737476896410,0.55805432,105310.0,105290.0,0.04765494]
[1737476896610,1.5,105300.0,105290.0,0.04765494]